bitfinex/quotes_ETHUSD_20260203
["timestamp","ask_amount","ask_price","bid_price","bid_amount"]
[1770141366812,0.94971876,2207.4,2205.8,12.59289632]
[1770141367104,0.00680611,2207.6,2206.2,13.54389632]
[1770141367402,0.00680611,2207.2,2205.8,12.59289632]
[1770141367701,0.00680611,2207.7,2206.4,13.72596376]
[1770141368001,0.95501425,2207.6,2206.5,0.951]
[1770141368296,0.00790611,2207.8,2206.5,0.951]
[1770141368502,0.0011,2207.8,2206.5,0.951]
[1770141368669,0.0011,2207.8,2206.5,13.54389632]
[1770141369073,0.0011,2207.3,2206.5,13.54389632]
[1770141369701,0.0011,2207.3,2206.6,1.13296474]
[1770141370603,0.0011,2207.3,2206.7,0.95]
[1770141370993,0.0011,2207.3,2206.5,1.13299517]
[1770141371304,0.0011,2207.3,2206.6,13.04289632]
[1770141371488,0.0011,2207.5,2206.6,13.04289632]
[1770141371687,0.0011,2207.5,2206.8,12.59289632]
[1770141371886,0.0011,2208.4,2206.8,12.59289632]
[1770141372080,0.0011,2208.4,2207.2,12.59289632]
[1770141372281,0.0011,2208.4,2207.4,12.59289632]
[1770141372596,0.0011,2208.4,2207.5,12.59289632]
[1770141372901,0.0011,2208.4,2207.6,0.95]
[1770141373479,0.0011,2208.4,2207.7,0.95]
[1770141373791,0.0011,2208.4,2207.7,2.08236866]
[1770141374584,0.0011,2208.4,2207.7,2.08239944]
[1770141374990,0.0011,2208.4,2207.7,0.95]
[1770141375311,0.0011,2208.4,2207.7,2.08238912]
[1770141376392,0.0011,2208.4,2207.7,2.08235737]
[1770141376685,0.0011,2208.4,2207.3,12.59289632]
[1770141376884,0.0011,2208.4,2207.5,1.13247939]
[1770141377099,0.0011,2208.4,2207.3,12.59289632]
[1770141377295,0.0011,2208.4,2207.3,0.95]
[1770141377296,0.00790611,2208.4,2207.3,0.95]
[1770141377490,0.00680611,2208.3,2207.3,0.95]
[1770141377699,0.0011,2208.4,2207.4,1.1325127]
[1770141378012,0.00790611,2208.4,2207.4,1.1325127]
[1770141378387,0.00680611,2207.9,2206.5,12.59289632]
[1770141378587,0.00680611,2208.1,2207.0,1.13275351]
[1770141378811,0.00680611,2207.9,2207.0,1.13275267]
[1770141379213,0.00680611,2207.9,2207.0,1.13275925]
[1770141379823,0.00680611,2207.9,2206.7,12.59289632]
[1770141379982,0.00790611,2208.4,2207.3,1.1325976]
[1770141380182,0.11030611,2208.4,2207.4,0.95]
[1770141380382,0.00790611,2208.4,2207.4,2.08254174]
[1770141380612,0.0011,2208.4,2207.4,2.08254174]
[1770141380805,0.00790611,2208.4,2207.4,2.08254174]
[1770141381113,0.0011,2208.4,2207.4,2.08254174]
[1770141381688,0.00790611,2208.4,2207.4,0.95]
[1770141381910,0.00790611,2208.4,2207.4,2.08254984]
[1770141382111,0.0011,2208.4,2207.4,14.59526128]
[1770141382619,0.0011,2208.1,2207.4,14.59526128]
[1770141383488,0.0011,2208.1,2207.4,12.51271144]
[1770141383811,0.0011,2208.1,2207.5,0.95]
[1770141384603,0.0011,2208.1,2207.5,2.08250269]
[1770141386591,0.0011,2208.1,2207.5,13.93391789]
[1770141390809,0.0011,2208.1,2207.5,2.08248984]
[1770141392016,0.0011,2208.1,2207.5,13.93390504]
[1770141396230,0.0011,2208.1,2207.6,0.001]
[1770141396697,0.0011,2208.1,2207.7,0.95]
[1770141397422,0.0011,2208.1,2207.6,0.001]
[1770141397632,0.0011,2208.1,2207.7,2.08137136]
[1770141401140,1.18586689,2208.3,2207.7,2.08137136]
[1770141401141,0.0011,2208.3,2207.7,2.08137136]
[1770141401300,1.18476689,2208.2,2207.7,2.08137136]
[1770141401728,1.18586689,2208.3,2207.7,2.08137136]
[1770141401904,1.18476689,2208.2,2207.7,2.08137136]
[1770141402105,1.18586689,2208.3,2207.7,2.08137136]
[1770141403458,4.63593721,2209.1,2207.7,2.08137136]
[1770141403459,0.0011,2209.0,2208.1,11.85822131]
[1770141403739,0.0011,2209.0,2208.4,11.8514152]
[1770141403894,0.0011,2209.2,2208.4,11.8514152]
[1770141404101,1.57573189,2209.8,2208.7,11.8514152]
[1770141404404,0.0011,2209.8,2208.8,0.949]
[1770141404604,0.0011,2209.8,2208.8,12.8004152]
[1770141404928,0.0011,2210.1,2209.3,11.85822131]
[1770141405231,2.36995331,2210.7,2209.3,11.85822131]
[1770141405232,0.0011,2210.7,2209.5,11.85822131]
[1770141405411,1.57463189,2211.4,2210.2,11.85822131]
[1770141405737,1.57463189,2211.8,2210.5,0.00680611]
[1770141405928,1.57463189,2211.7,2209.9,11.85822131]
[1770141406130,1.57463189,2211.7,2209.6,12.9828417]
[1770141406131,13.24861044,2211.3,2209.6,12.9828417]
[1770141406330,13.34420433,2211.2,2209.7,0.949]
[1770141406534,0.10920611,2210.8,2209.2,11.8514152]
[1770141406829,0.1024,2210.9,2209.5,12.98285705]
[1770141407199,0.00680611,2210.8,2209.6,0.949]
[1770141407401,0.1024,2210.7,2209.6,2.08041488]
[1770141407622,1.39380235,2210.7,2209.1,11.8514152]
[1770141407821,1.39380235,2210.7,2209.3,11.8514152]
[1770141408006,1.39380235,2210.7,2209.6,1.1314187]
[1770141408213,1.39380235,2210.7,2209.7,0.949]
[1770141408427,1.39380235,2210.7,2209.7,0.899]
[1770141408633,1.41918012,2210.6,2209.7,0.899]
[1770141410235,0.0011,2210.5,2209.7,0.899]
[1770141410408,0.0011,2210.5,2209.2,1.13159993]
[1770141410409,1.13887195,2210.5,2209.2,1.13159993]
[1770141410613,11.77747855,2210.5,2209.3,0.949]
[1770141410815,1.43344134,2210.4,2209.3,2.08056658]
[1770141411740,0.1035,2210.5,2209.3,2.08056658]
[1770141412234,0.1035,2210.5,2209.4,0.949]
[1770141412235,1.23446716,2210.5,2209.4,0.949]
[1770141413040,0.0011,2210.5,2209.4,0.949]
[1770141413442,0.0011,2210.5,2209.5,1.1314777]
[1770141414513,0.0011,2210.5,2209.4,1.13151933]
[1770141414746,0.0011,2210.7,2210.0,11.81799334]
[1770141414913,0.0011,2210.7,2210.1,0.949]
[1770141415314,0.0011,2210.7,2210.0,11.81799334]
[1770141415510,0.0011,2210.7,2210.1,0.949]
[1770141415946,0.0011,2210.7,2209.6,11.81799334]
[1770141416137,0.0011,2210.7,2209.7,0.949]
[1770141417427,0.0011,2210.7,2209.8,0.949]
[1770141417635,0.0011,2210.7,2209.2,11.82479945]
[1770141417826,0.0011,2210.7,2209.4,1.13152599]
[1770141418046,0.0011,2210.7,2209.3,2.08055748]
[1770141418247,0.0011,2210.7,2209.3,0.949]
[1770141418451,0.0011,2210.7,2209.2,11.81799334]
[1770141418649,4.8784,2210.4,2209.3,0.949]
[1770141418825,0.1024,2210.2,2209.3,0.949]
[1770141419026,0.0011,2210.7,2209.6,4.52556511]
[1770141419227,0.0011,2210.7,2209.7,1.13132909]
[1770141419427,0.0011,2210.7,2209.3,17.29319136]
[1770141419635,0.0011,2210.7,2209.4,1.13152892]
[1770141420045,0.1035,2210.7,2209.4,1.13152892]
[1770141421234,0.11030611,2210.7,2209.5,0.949]
[1770141421454,0.1035,2210.7,2209.5,0.949]
[1770141421630,0.1035,2210.7,2209.6,1.1314265]
[1770141421830,1.84595493,2210.7,2209.6,1.1314265]
[1770141422036,0.0011,2210.7,2209.6,1.1314265]
[1770141422557,0.1035,2210.7,2209.6,1.1314265]
[1770141423259,0.0011,2210.2,2209.6,1.1314265]
[1770141423432,0.0011,2210.7,2209.6,12.94941984]
[1770141423635,0.0011,2210.4,2209.6,12.94941984]
[1770141423840,0.0011,2210.7,2209.8,11.82479945]
[1770141424525,0.0011,2211.3,2209.8,11.82479945]
[1770141424526,0.0011,2211.3,2210.0,11.82479945]
[1770141424755,0.0011,2211.3,2210.1,12.76699334]
[1770141425332,0.0011,2211.6,2210.6,11.81799334]
[1770141425638,0.31241013,2212.1,2211.0,11.82479945]
[1770141425835,0.00680611,2212.5,2211.0,11.81799334]
[1770141426153,0.00680611,2212.4,2211.1,0.949]
[1770141426331,11.67837855,2212.6,2211.1,0.949]
[1770141426332,11.67157244,2212.6,2211.1,0.949]
[1770141426660,0.00680611,2213.2,2211.3,11.82479945]
[1770141426848,0.00680611,2213.0,2211.5,11.81799334]
[1770141427049,0.00680611,2213.1,2211.5,11.81799334]
[1770141427360,1.13638005,2213.3,2211.5,11.81799334]
[1770141427361,0.00680611,2213.3,2211.7,11.81799334]
[1770141427531,0.10920611,2213.2,2211.8,1.13030111]
[1770141427730,1.13640622,2213.2,2211.8,1.13030111]
[1770141428043,1.13640622,2213.2,2211.9,0.949]
[1770141428044,0.1024,2213.0,2211.9,0.949]
[1770141428757,1.28147848,2213.1,2211.9,0.949]
[1770141429066,0.1024,2213.0,2212.0,0.948]
[1770141429252,1.28147848,2213.1,2212.1,0.948]
[1770141429453,0.1024,2213.3,2212.1,0.948]
[1770141429665,0.1024,2213.3,2212.2,1.13009673]
[1770141429832,12.90351706,2213.3,2211.2,0.00680611]
[1770141430031,11.77397244,2213.1,2211.6,1.13717581]
[1770141430252,0.1024,2213.1,2212.1,0.00680611]
[1770141430472,0.1024,2213.4,2212.2,0.948]
[1770141430630,0.1024,2213.4,2212.1,0.00680611]
[1770141430631,13.51609009,2213.4,2212.1,0.00680611]
[1770141430834,14.46409009,2213.4,2211.6,0.00680611]
[1770141431057,11.77397244,2213.2,2211.6,0.00680611]
[1770141431261,11.77397244,2213.2,2211.3,0.00680611]
[1770141431262,11.77397244,2213.0,2211.3,0.00680611]
[1770141431571,11.77397244,2212.5,2211.0,0.83897334]
[1770141431742,13.34860433,2212.3,2210.4,0.00680611]
[1770141432059,0.1024,2211.9,2210.8,0.00680611]
[1770141432531,10.9349991,2211.9,2210.3,0.948]
[1770141432734,0.1024,2211.5,2209.7,16.35028658]
[1770141432936,0.1024,2211.2,2209.6,0.00680611]
[1770141433135,0.1024,2211.2,2210.0,1.13800451]
[1770141433357,0.1024,2211.2,2210.1,1.1311649]
[1770141433659,1.23301777,2211.2,2210.0,1.13799415]
[1770141433862,0.1024,2211.2,2210.1,0.00680611]
[1770141434065,0.1024,2211.1,2210.1,0.00680611]
[1770141435133,0.1024,2211.1,2210.0,11.81799334]
[1770141435352,0.1024,2211.1,2210.0,1.13121716]
[1770141435547,0.1024,2211.1,2209.8,1.13129696]
[1770141435747,1.13071008,2211.0,2209.7,2.07935005]
[1770141435969,1.91866251,2211.1,2209.7,2.07935005]
[1770141436171,1.91866251,2211.1,2209.7,13.89734339]
[1770141436474,1.57463189,2211.4,2210.0,0.00780611]
[1770141436475,0.1024,2211.2,2210.0,0.00780611]
[1770141436762,1.23300809,2211.2,2210.0,0.001]
[1770141436964,1.23300809,2211.2,2210.1,11.82479945]
[1770141436965,0.1024,2211.2,2210.1,11.82479945]
[1770141437169,0.1024,2211.2,2210.1,11.81799334]
[1770141437462,0.1024,2211.3,2210.1,11.81799334]
[1770141437968,0.1024,2211.1,2210.0,0.001]
[1770141438178,1.10373991,2211.5,2210.9,0.00680611]
[1770141438346,1.5433405,2212.2,2211.3,0.00680611]
[1770141438543,1.13112392,2212.4,2211.4,0.00680611]
[1770141438544,0.0011,2212.4,2211.4,0.00680611]
[1770141438752,0.0011,2212.4,2211.5,0.00680611]
[1770141438953,0.1024,2212.3,2210.7,11.81799334]
[1770141439152,0.67774741,2212.3,2210.7,11.81799334]
[1770141439665,13.0839784,2212.3,2210.8,0.948]
[1770141439856,0.1024,2211.9,2210.8,0.948]
[1770141440180,0.1024,2211.9,2210.4,1.13781377]
[1770141440374,0.1024,2211.9,2210.7,1.13766545]
[1770141440583,0.77253946,2211.9,2210.7,1.13766545]
[1770141440872,0.77253946,2211.9,2210.5,11.82479945]
[1770141441058,0.77253946,2211.9,2210.6,1.13090074]
[1770141441374,0.77253946,2211.9,2210.7,1.1308592]
[1770141441587,11.60413856,2211.9,2210.5,0.00680611]
[1770141441767,11.60413856,2211.9,2210.0,0.001]
[1770141441768,0.1024,2211.3,2210.0,0.001]
[1770141441971,0.1024,2211.1,2210.0,0.001]
[1770141443165,1.57463189,2211.6,2210.0,12.16553279]
[1770141443479,0.1024,2211.4,2210.3,0.00680611]
[1770141443678,0.1024,2211.4,2210.2,0.00680611]
[1770141443885,1.13055668,2211.3,2210.2,1.13791987]
[1770141444375,0.1024,2211.4,2210.2,12.16453279]
[1770141444579,0.39499793,2211.5,2210.4,12.1713389]
[1770141444882,1.23278414,2211.7,2210.4,12.1713389]
[1770141445202,7.58341603,2211.7,2210.1,2.07912236]
[1770141445385,0.1024,2211.6,2210.2,1.13111766]
[1770141445749,1.67703189,2211.6,2210.1,0.948]
[1770141445958,1.13054451,2211.4,2210.1,2.07916355]
[1770141446162,0.99587634,2211.5,2210.1,14.24369634]
[1770141446362,0.1024,2211.7,2210.5,12.1713389]
[1770141447077,0.1024,2211.7,2210.1,14.25050245]
[1770141447582,1.67703189,2211.7,2210.1,14.24369634]
[1770141447955,1.13040332,2211.6,2210.1,14.24369634]
[1770141448370,2.80741807,2211.7,2210.1,14.24369634]
[1770141448583,0.32499551,2211.6,2210.4,12.1713389]
[1770141449098,1.57287152,2211.8,2210.6,12.1713389]
[1770141449099,0.44253703,2211.8,2210.6,12.1713389]
[1770141449294,1.13015214,2212.1,2210.6,12.1713389]
[1770141449503,0.0011,2212.4,2211.0,12.16453279]
[1770141449809,0.0011,2211.7,2211.3,12.16453279]
[1770141450099,0.0011,2211.7,2211.3,1.13053238]
[1770141450481,0.0011,2212.4,2211.4,12.1713389]
[1770141450681,0.0011,2212.4,2211.6,12.1713389]
[1770141450992,0.0011,2212.4,2211.7,12.1713389]
[1770141451191,0.0011,2212.4,2211.8,0.948]
[1770141451591,0.0011,2212.4,2211.8,0.95480611]
[1770141451907,2.70516799,2213.5,2212.2,1.13009673]
[1770141452129,0.1024,2213.4,2211.9,0.64760269]
[1770141452276,0.00680611,2212.3,2211.2,13.29513602]
[1770141452474,0.00680611,2212.3,2211.3,1.13054896]
[1770141452911,0.00680611,2212.0,2210.9,0.948]
[1770141453076,0.1024,2211.8,2210.9,0.948]
[1770141453275,0.1024,2211.8,2210.9,2.07875862]
[1770141453898,0.10920611,2212.1,2210.9,2.07875862]
[1770141454079,0.95623844,2212.0,2210.9,2.07875862]
[1770141454409,0.10920611,2212.1,2210.9,2.07875862]
[1770141454410,0.95623844,2211.9,2210.9,2.07875862]
[1770141454712,0.10920611,2212.1,2210.9,14.24329141]
[1770141454934,0.95617604,2212.0,2210.9,14.24329141]
[1770141455227,0.1024,2212.1,2210.9,14.24329141]
[1770141455228,0.95617604,2211.9,2210.9,14.24329141]
[1770141455414,1.23936099,2212.1,2210.9,14.24329141]
[1770141455581,0.00680611,2211.9,2210.9,2.07875262]
[1770141455776,0.00680611,2211.9,2210.9,0.948]
[1770141455777,0.95619915,2211.8,2210.9,0.948]
[1770141456005,0.00680611,2211.9,2210.9,0.948]
[1770141456209,0.9565212,2211.8,2210.9,2.07875839]
[1770141456408,0.00680611,2211.6,2210.9,0.948]
[1770141456618,0.10920611,2211.8,2210.9,0.948]
[1770141456819,0.95665672,2211.7,2210.9,0.948]
[1770141457020,0.96346283,2211.6,2210.9,0.948]
[1770141457227,0.96346283,2211.6,2210.3,1.13203741]
[1770141457228,0.00680611,2211.3,2210.3,1.13203741]
[1770141457523,0.00680611,2211.1,2210.3,0.001]
[1770141457751,0.00680611,2211.2,2210.3,0.001]
[1770141457886,0.98388116,2211.0,2210.3,0.001]
[1770141458086,2.12141978,2211.0,2210.3,0.001]
[1770141458304,2.12141978,2211.0,2209.4,4.5259374]
[1770141458305,1.5291993,2210.2,2208.0,0.37645152]
[1770141458497,2.3753474,2208.8,2208.3,13.38000585]
[1770141458724,2.3753474,2208.8,2207.6,12.16553279]
[1770141458725,2.3753474,2208.5,2207.6,12.16553279]
[1770141458920,3.90336855,2209.1,2207.6,12.16553279]
[1770141458921,2.3753474,2208.4,2207.6,12.16553279]
[1770141459110,3.18864645,2208.8,2207.8,12.16553279]
[1770141459424,0.1024,2208.8,2207.8,12.16553279]
[1770141459635,3.29104645,2208.8,2207.8,0.001]
[1770141459792,0.1024,2208.8,2207.8,0.001]
[1770141459987,1.13188753,2208.7,2207.8,0.001]
[1770141461513,0.1024,2208.7,2207.8,0.001]
[1770141461906,0.1024,2208.5,2207.8,0.001]
[1770141462103,0.1024,2208.5,2207.8,1.13334894]
[1770141462306,0.1024,2208.5,2208.0,0.001]
[1770141462713,1.58561188,2208.5,2207.6,0.001]
[1770141463000,3.4093947,2208.4,2207.6,12.16553279]
[1770141463326,0.1024,2208.3,2207.6,0.001]
[1770141463524,1.90933146,2208.3,2207.6,0.001]
[1770141463713,3.4093947,2208.2,2207.6,0.001]
[1770141464094,0.1024,2208.0,2207.6,0.001]
[1770141465122,3.5117947,2208.0,2207.6,0.001]
[1770141465735,1.48317034,2208.5,2207.6,0.001]
[1770141465912,3.4093947,2208.3,2207.6,1.21765328]
[1770141466112,0.1024,2208.2,2207.6,0.001]
[1770141466351,3.5117947,2208.2,2207.6,0.001]
[1770141466514,3.4093947,2208.1,2207.1,12.16453279]
[1770141467215,3.5117947,2208.1,2207.0,0.00680611]
[1770141467409,0.1024,2207.8,2207.3,0.00680611]
[1770141467647,0.1024,2207.8,2207.1,12.16453279]
[1770141467854,0.1024,2207.8,2207.1,13.49436182]
[1770141468057,3.5117947,2207.8,2207.1,12.16453279]
[1770141468240,3.5117947,2207.8,2206.9,0.001]
[1770141468241,0.1024,2207.6,2206.9,0.001]
[1770141469050,3.4093947,2207.6,2206.9,0.001]
[1770141469222,0.1024,2207.8,2206.9,13.2983375]
[1770141469422,3.5117947,2207.8,2207.0,12.16453279]
[1770141469657,1.13219509,2208.1,2207.1,13.29723249]
[1770141469848,3.31052103,2208.0,2207.1,12.16453279]
[1770141470035,3.31052103,2208.0,2207.1,13.29723867]
[1770141470924,3.31052103,2208.0,2207.1,12.11453279]
[1770141471237,0.3310521,2207.9,2207.1,12.11453279]
[1770141471437,0.3310521,2207.9,2207.0,0.949]
[1770141471647,3.31052103,2207.8,2207.0,0.949]
[1770141471848,3.31052103,2207.8,2207.0,15.05053843]
[1770141472149,0.3310521,2207.9,2207.0,15.05053843]
[1770141472361,3.31052103,2207.9,2207.1,12.96882535]
[1770141472650,0.1024,2208.0,2207.1,12.96882535]
[1770141472863,3.31052103,2207.9,2207.1,12.96882535]
[1770141474353,0.1024,2207.8,2207.0,0.949]
[1770141474524,3.31052103,2207.7,2207.1,13.67535482]
[1770141474723,1.1982535,2208.2,2207.1,13.67535482]
[1770141474952,3.31052103,2208.1,2207.1,13.67535482]
[1770141475146,3.31052103,2208.1,2206.9,0.95]
[1770141475356,0.66717406,2208.0,2206.9,2.08278602]
[1770141475660,0.00680611,2207.9,2207.2,0.001]
[1770141475858,0.0011,2207.6,2206.9,0.9]
[1770141476060,0.0011,2207.6,2206.7,12.54365037]
[1770141476258,3.31052103,2207.5,2207.0,0.001]
[1770141476441,4.44302707,2207.5,2207.0,0.001]
[1770141477162,0.1024,2207.4,2207.0,0.001]
[1770141477470,1.01072063,2207.4,2207.0,0.001]
[1770141478065,3.31052103,2207.3,2207.0,0.001]
[1770141478569,3.31052103,2207.2,2207.0,0.001]
[1770141479486,3.31052103,2207.2,2205.5,12.54265037]
[1770141479487,0.00680611,2206.9,2205.5,12.54265037]
[1770141479642,0.1024,2206.7,2205.5,12.54265037]
[1770141479977,0.1024,2206.5,2205.5,12.54265037]
[1770141480140,1.05852908,2206.5,2205.5,12.54265037]
[1770141480341,4.15001743,2206.5,2205.5,12.54265037]
[1770141480541,1.13306744,2206.4,2205.6,13.79691541]
[1770141480848,0.91669565,2206.4,2205.6,13.79691541]
[1770141481054,0.8394964,2206.5,2205.6,13.79691541]
[1770141481253,1.13260544,2207.3,2205.8,12.54265037]
[1770141481455,1.18212872,2207.2,2205.9,0.95]
[1770141481653,0.00680611,2206.9,2205.9,0.9]
[1770141481977,3.31052103,2206.8,2205.9,0.9]
[1770141482188,0.00680611,2207.0,2206.0,12.54265037]
[1770141482189,3.31052103,2207.0,2206.0,12.54265037]
[1770141482342,0.1024,2206.9,2206.0,13.33095175]
[1770141482645,0.94515795,2206.8,2205.6,12.54265037]
[1770141482841,0.1024,2206.6,2205.6,13.67610223]
[1770141483072,0.1024,2206.6,2205.7,13.67603726]
[1770141483254,3.31052103,2206.5,2205.7,12.54265037]
[1770141483667,1.04827458,2206.4,2205.5,0.95]
[1770141483975,0.1024,2206.2,2205.1,13.49365037]
[1770141484193,3.31052103,2206.1,2205.4,13.67619957]
[1770141484478,1.13322152,2206.1,2205.1,0.951]
[1770141484685,4.25761313,2206.0,2205.1,0.951]
[1770141484844,1.0490258,2205.9,2205.1,0.001]
[1770141485044,0.1024,2205.9,2205.1,0.001]
[1770141485276,4.25858749,2205.8,2205.1,0.001]
[1770141485481,3.31052103,2205.8,2205.1,0.001]
[1770141485769,3.31052103,2205.7,2205.1,0.001]
[1770141486471,3.31052103,2205.7,2204.5,12.54945648]
[1770141486472,2.0825986,2205.6,2204.5,12.54945648]
[1770141486676,0.1024,2205.4,2204.5,12.54265037]
[1770141486849,1.27772261,2205.4,2204.5,12.54265037]
[1770141487043,5.43492445,2205.3,2204.5,12.54265037]
[1770141487243,1.17532261,2205.0,2204.5,12.54265037]
[1770141487446,1.17532261,2205.0,2204.1,12.54265037]
[1770141487447,2.12440342,2205.0,2204.1,12.54265037]
[1770141487680,4.25960184,2204.9,2204.1,12.54265037]
[1770141487851,0.94908081,2204.8,2204.0,12.54265037]
[1770141488347,1.17532261,2205.2,2204.4,12.54265037]
[1770141488560,1.17532261,2205.1,2204.4,12.54265037]
[1770141488770,4.48584364,2205.1,2204.4,12.54265037]
[1770141488942,3.31052103,2205.1,2204.7,0.001]
[1770141489586,1.13360276,2205.4,2204.7,12.54365037]
[1770141489880,1.17532261,2205.2,2204.5,0.001]
[1770141490089,0.1024,2205.0,2204.5,0.001]
[1770141490249,1.17532261,2205.0,2204.5,0.001]
[1770141490477,1.13388969,2204.8,2204.5,0.001]
[1770141490876,3.30952103,2204.7,2204.5,0.001]
[1770141491483,1.5845352,2205.4,2204.5,12.54365037]
[1770141491705,2.71788361,2205.9,2204.5,12.54365037]
[1770141492068,2.72468972,2205.9,2204.5,12.54365037]
[1770141492273,2.71788361,2205.9,2204.7,12.54265037]
[1770141493007,1.13334841,2205.9,2204.7,13.67655385]
[1770141493372,1.13334841,2205.9,2204.7,12.54265037]
[1770141493577,2.71788361,2205.9,2204.7,12.54265037]
[1770141493880,1.13334841,2205.9,2204.7,12.54265037]
[1770141494104,2.55845432,2205.9,2204.8,13.23585175]
[1770141495099,0.00680611,2205.3,2204.5,0.001]
[1770141495303,1.69374131,2205.1,2204.5,0.001]
[1770141496306,1.6869352,2205.1,2204.5,0.001]
[1770141496976,1.13378684,2205.0,2204.5,0.001]
[1770141497187,2.3505691,2205.6,2204.8,0.00680611]
[1770141497385,1.13351477,2205.6,2204.5,12.54365037]
[1770141497904,1.13351477,2205.6,2204.5,12.49365037]
[1770141498511,0.1024,2205.5,2204.4,0.95]
[1770141498689,0.91441981,2205.5,2204.4,0.95]
[1770141498888,1.1335812,2205.4,2204.4,0.95]
[1770141499706,2.04799078,2205.5,2204.4,0.95]
[1770141499890,2.04799078,2205.5,2204.4,12.54265037]
[1770141499891,1.23597097,2205.5,2204.4,12.54265037]
[1770141500204,0.94977953,2205.4,2204.4,12.54265037]
[1770141500411,0.1024,2205.2,2204.0,12.54265037]
[1770141500708,0.94977953,2205.1,2203.9,0.951]
[1770141500909,2.45977521,2205.4,2203.9,0.951]
[1770141500910,1.13383826,2204.9,2203.9,0.951]
[1770141501128,0.94977953,2204.8,2203.9,0.951]
[1770141501299,0.94977953,2204.7,2203.9,0.951]
[1770141501480,1.13383826,2204.9,2203.9,0.951]
[1770141501681,1.70075739,2204.9,2203.9,0.951]
[1770141502090,1.70075739,2204.9,2204.5,0.001]
[1770141502409,1.70075739,2204.9,2203.9,0.951]
[1770141502921,1.70075739,2204.9,2203.6,12.76519492]
[1770141503626,1.13383826,2204.9,2203.6,12.76519492]
[1770141504482,1.14064437,2204.9,2203.6,12.76519492]
[1770141504883,1.14064437,2204.9,2203.6,0.001]
[1770141505208,3.49121347,2204.9,2203.6,0.001]
[1770141505633,3.48440736,2204.9,2203.6,0.001]
[1770141505952,1.13368574,2205.2,2203.7,12.76419492]
[1770141506151,1.13368574,2205.2,2203.9,12.76419492]
[1770141506515,3.48425484,2205.2,2203.9,12.76419492]
[1770141506717,1.13368574,2205.2,2203.9,12.76419492]
[1770141506945,3.48424751,2205.3,2204.0,14.04129502]
[1770141507115,0.0011,2205.4,2204.1,14.84944472]
[1770141508124,0.0011,2205.6,2204.3,12.76419492]
[1770141508454,0.0011,2205.6,2204.4,0.00680611]
[1770141508633,0.0011,2205.6,2204.5,12.76419492]
[1770141508816,0.0011,2205.6,2204.7,12.76419492]
[1770141509013,0.0011,2205.6,2204.8,14.84903844]
[1770141509228,0.0011,2205.6,2204.8,0.951]
[1770141511162,0.0011,2205.6,2204.8,14.84908179]
[1770141511370,0.0011,2205.6,2204.8,13.71519492]
[1770141511685,0.0011,2205.6,2204.9,1.48490988]
[1770141511885,0.0011,2205.6,2203.6,12.76519492]
[1770141511886,3.18864645,2205.0,2203.6,12.76519492]
[1770141512175,2.39145958,2204.7,2203.6,12.76519492]
[1770141512464,2.39145958,2204.7,2203.6,0.001]
[1770141512465,2.39145958,2204.4,2203.6,0.001]
[1770141512835,2.39145958,2204.3,2203.6,0.001]
[1770141513438,0.95744953,2204.2,2203.6,0.001]
[1770141513640,0.95744953,2204.1,2203.6,0.001]
[1770141513838,0.95744953,2204.0,2203.6,0.001]
[1770141514062,0.95744953,2203.9,2203.8,0.001]
[1770141514873,2.39145958,2204.3,2203.8,0.001]
[1770141515472,2.39145958,2204.4,2203.8,0.001]
[1770141516856,2.39145958,2204.0,2203.5,0.001]
[1770141517055,2.39145958,2203.9,2203.5,0.001]
[1770141517377,3.52581556,2203.9,2203.5,0.001]
[1770141517576,3.52582144,2203.9,2203.5,0.001]
[1770141517780,3.53262801,2203.9,2203.0,0.951]
[1770141518080,3.19844388,2203.8,2203.0,0.951]
[1770141518276,2.39145958,2203.9,2203.0,0.951]
[1770141518448,3.52581768,2203.9,2203.0,0.951]
[1770141518946,3.52581768,2203.9,2202.9,13.71519492]
[1770141518947,2.39145958,2203.8,2202.9,13.71519492]
[1770141519373,3.52581768,2203.9,2202.9,13.71519492]
[1770141519575,0.80698926,2203.8,2202.9,13.71519492]
[1770141519972,0.80698926,2203.8,2202.9,0.951]
[1770141519973,3.19844884,2203.8,2202.9,0.951]
[1770141520346,0.80698926,2203.8,2202.9,0.951]
[1770141521280,3.52581768,2203.9,2202.9,0.951]
[1770141521978,3.52573884,2204.1,2202.9,2.08583144]
[1770141522279,3.52573884,2204.1,2202.9,0.951]
[1770141522647,3.53254634,2204.1,2202.9,0.951]
[1770141522849,2.39145958,2204.0,2202.9,0.951]
[1770141523045,3.19840432,2204.0,2202.9,0.951]
[1770141523278,3.19840432,2204.0,2203.1,4.0595463]
[1770141523578,1.13435273,2203.9,2203.1,4.0595463]
[1770141524155,0.0068075,2203.8,2203.1,2.82016982]
[1770141524375,2.39145958,2203.8,2203.1,2.82016982]
[1770141524568,0.88699971,2203.8,2203.1,2.82016982]
[1770141525179,2.39145958,2203.9,2203.1,2.82016982]
[1770141525385,0.1024,2203.7,2203.1,2.82016982]
[1770141525584,2.39145958,2203.6,2202.7,0.001]
[1770141525868,3.52597524,2203.6,2202.7,0.001]
[1770141526289,2.39145958,2203.8,2202.7,0.001]
[1770141526475,0.1024,2204.1,2203.1,12.76419492]
[1770141526677,3.18861278,2204.5,2203.1,12.76419492]
[1770141526678,0.95297215,2204.0,2203.1,12.76419492]
[1770141526965,0.95298309,2203.9,2203.3,0.001]
[1770141527179,0.0011,2204.2,2203.4,0.951]
[1770141527382,0.95320649,2204.1,2203.4,0.951]
[1770141527597,0.95320649,2204.0,2203.4,2.08559]
[1770141527896,0.95320649,2203.9,2203.4,2.08559]
[1770141528094,0.0011,2204.2,2203.4,0.901]
[1770141528298,2.54235294,2204.2,2203.4,0.901]
[1770141528593,0.95297106,2204.1,2203.4,0.901]
[1770141528794,0.95297106,2204.0,2203.4,0.901]
[1770141529104,1.58938188,2204.2,2203.4,0.55747592]
[1770141529105,0.95297106,2203.9,2203.4,0.55747592]
[1770141529406,1.58828188,2203.7,2203.0,0.001]
[1770141529563,0.95297106,2203.6,2203.0,0.001]
[1770141529888,0.95297106,2203.5,2203.0,0.001]
[1770141530091,0.95297106,2203.4,2203.0,0.001]
[1770141530267,1.58828188,2203.8,2203.0,0.001]
[1770141530586,0.95287814,2203.7,2202.8,2.0858919]